bitfinex-derivatives/quotes_ETHF0:USTF0_20250520
["timestamp","ask_amount","ask_price","bid_price","bid_amount"]
[1747748246784,0.00606931,2474.8,2474.7,0.80786]
[1747748246975,0.80786,2474.7,2474.6,14.641]
[1747748247171,0.80786,2474.7,2474.6,14.09706733]
[1747748247376,0.80793,2474.5,2474.3,9.31e-06]
[1747748247574,1.4653,2474.7,2472.7,3.2078]
[1747748247575,4.04042,2474.1,2472.7,3.2078]
[1747748247873,3.2078,2474.5,2474.1,0.41675309]
[1747748248078,0.80799,2474.3,2474.2,0.41675309]
[1747748248278,3.2078,2474.5,2474.2,0.41675309]
[1747748248478,0.80803,2474.2,2474.1,15.20406931]
[1747748248777,5.228535,2474.5,2474.1,15.20406931]
[1747748248978,5.228535,2474.5,2474.1,1.2308624]
[1747748249277,0.00606931,2474.8,2474.4,0.41675309]
[1747748249486,0.00606931,2474.8,2474.7,4.43241309]
[1747748249782,0.00606931,2474.8,2474.7,16.42261309]
[1747748251077,0.00606931,2474.8,2474.7,41.42261309]
[1747748251377,0.00606931,2474.8,2474.7,46.42261309]
[1747748251985,1.5659,2475.4,2475.3,0.80767]
[1747748252181,1.5659,2475.4,2475.3,16.00467]
[1747748252380,3.2078,2475.7,2475.6,0.80757]
[1747748252679,1.5659,2476.0,2475.9,0.80747]
[1747748253077,3.585325,2476.0,2475.9,0.80747]
[1747748253480,3.585325,2476.0,2475.9,16.00247]
[1747748254578,4.392765,2476.0,2475.9,15.195]
[1747748255189,4.392765,2476.0,2475.9,14.2003433]
[1747748255190,3.585325,2476.0,2475.9,14.2003433]
[1747748255381,4.392765,2476.0,2475.9,13.3928733]
[1747748255581,3.585325,2476.0,2475.9,14.2003433]
[1747748255976,4.392765,2476.0,2475.9,13.3928733]
[1747748256181,3.585325,2476.0,2475.9,14.2003433]
[1747748256381,4.392765,2476.0,2475.9,13.3928733]
[1747748256583,3.585325,2476.0,2475.9,14.2003433]
[1747748257488,3.585325,2476.0,2475.9,13.3928733]
[1747748257686,3.585325,2476.0,2475.9,14.2003433]
[1747748257986,2.019425,2476.0,2475.9,14.2003433]
[1747748258282,3.2078,2476.1,2476.0,0.80744]
[1747748258481,0.00606931,2476.2,2476.1,0.80741]
[1747748258679,0.00606931,2476.2,2476.1,1.22416309]
[1747748259489,3.2078,2476.8,2476.7,0.80721]
[1747748259675,4.7557,2477.2,2477.1,0.80708]
[1747748259880,3.2078,2477.2,2477.1,25.80708]
[1747748260183,1.5479,2477.4,2477.3,0.80701]
[1747748260381,5.15124,2478.2,2477.3,17.06029309]
[1747748260382,3.2078,2478.0,2477.3,17.06029309]
[1747748260587,3.2078,2478.0,2477.9,0.41675309]
[1747748260588,4.01459,2478.0,2477.9,0.41675309]
[1747748260880,3.2078,2478.0,2477.9,15.84957309]
[1747748261089,0.00605632,2478.2,2478.1,0.80675]
[1747748261385,0.00605632,2478.2,2478.1,3.62455309]
[1747748261687,2.02369132,2478.2,2478.1,14.626]
[1747748261879,1.55395632,2478.2,2478.1,14.626]
[1747748262078,2.36067632,2478.2,2478.1,14.626]
[1747748262278,1.55395632,2478.2,2478.1,14.626]
[1747748262483,2.36067632,2478.2,2478.1,15.04275309]
[1747748262695,0.8068,2478.0,2477.8,40.72]
[1747748262989,3.2078,2478.1,2477.9,15.84357309]
[1747748263190,3.2078,2478.1,2477.9,14.62]
[1747748263387,4.01455,2478.1,2478.0,14.62]
[1747748263594,0.80682,2477.9,2477.8,40.72]
[1747748263884,1.5599,2478.0,2477.9,0.41675309]
[1747748264081,2.3667,2478.0,2477.9,0.41675309]
[1747748264278,9.034775,2478.0,2477.5,1.5922]
[1747748264476,0.80705,2477.2,2477.1,0.00605632]
[1747748264679,3.2078,2477.3,2477.1,15.04280941]
[1747748264885,0.80698,2477.4,2477.3,0.41675309]
[1747748265090,0.8069,2477.7,2477.5,0.41675309]
[1747748265392,0.80689,2477.7,2477.4,0.80696]
[1747748265687,0.80695,2477.5,2477.1,25.00605632]
[1747748265879,4.7777,2477.6,2477.5,15.03475309]
[1747748266081,3.2078,2477.6,2477.5,15.84170309]
[1747748266285,3.2078,2477.6,2477.5,15.03475309]
[1747748266684,3.2078,2477.6,2477.5,15.84170309]
[1747748266985,4.01472,2477.6,2477.5,15.03475309]
[1747748267689,0.80692,2477.6,2477.5,15.03475309]
[1747748267992,0.00605632,2478.2,2478.1,0.80675]
[1747748268184,0.81280632,2478.2,2478.1,15.03475309]
[1747748268386,2.39160632,2478.2,2478.1,15.03475309]
[1747748268883,0.00605632,2478.2,2478.1,15.84150309]
[1747748269089,0.81277632,2478.2,2478.1,15.03475309]
[1747748269389,0.81277632,2478.2,2478.1,16.64385309]
[1747748269689,0.00605632,2478.2,2478.1,16.64185309]
[1747748269891,0.81277632,2478.2,2478.1,16.64185309]
[1747748270391,2.83041132,2478.2,2478.1,15.03275309]
[1747748270592,0.80679,2478.0,2477.9,3.2078]
[1747748270785,0.80679,2478.0,2477.9,17.8238]
[1747748270985,0.80679,2478.0,2477.9,18.24055309]
[1747748271188,0.80679,2478.0,2477.9,16.70375309]
[1747748272598,0.8069,2477.7,2477.5,4.09960477]
[1747748272788,0.80688,2477.8,2477.7,0.41675309]
[1747748272990,1.5752,2477.9,2477.7,0.41675309]
[1747748273297,0.80685,2477.8,2477.7,0.41675309]
[1747748274487,0.80685,2477.8,2477.3,2.01752]
[1747748274488,2.01796,2477.8,2477.3,14.09]
[1747748274687,0.80692,2477.6,2477.5,0.41675309]
[1747748274893,0.80698,2477.4,2477.3,14.09]
[1747748275093,0.80705,2477.2,2477.1,0.09092109]
[1747748275483,2.8255,2477.2,2477.1,0.00605632]
[1747748275888,7.8255,2477.2,2477.1,0.00605632]
[1747748276288,9.4253,2477.2,2477.1,0.00605632]
[1747748276692,0.80718,2476.8,2476.7,40.683]
[1747748276893,0.80718,2476.8,2476.6,0.80723]
[1747748277092,0.80721,2476.7,2476.6,0.41675309]
[1747748277293,1.561,2476.7,2476.6,0.80724]
[1747748277495,2.018855,2476.7,2476.6,1.22399309]
[1747748277700,2.826065,2476.7,2476.6,0.41675309]
[1747748277887,0.80721,2476.7,2476.6,0.41675309]
[1747748278292,0.80718,2476.8,2476.7,0.8072]
[1747748278494,1.56705632,2476.9,2476.8,0.41675309]
[1747748278800,0.80728,2476.5,2476.4,6.32e-06]
[1747748279004,4.01508,2476.5,2476.4,6.32e-06]
[1747748279304,13.77410001,2476.5,2476.4,6.32e-06]
[1747748280104,3.2801,2478.0,2476.8,0.41675309]
[1747748280405,3.2078,2477.8,2477.2,3.62455309]
[1747748280709,2.0174,2477.5,2476.9,1.7236]
[1747748280893,0.80711,2477.0,2476.7,14.093]
[1747748281098,0.81315632,2477.1,2476.8,1.22392309]
[1747748281299,0.80718,2476.8,2476.7,14.093]
[1747748281603,3.2078,2476.9,2476.4,54.78500632]
[1747748281797,1.6098,2476.7,2476.4,54.78500632]
[1747748282001,6.033815,2476.9,2476.6,0.80723]
[1747748282208,7.643615,2476.9,2476.6,0.80722]
[1747748282504,0.00605632,2477.1,2476.8,0.41675309]
[1747748282697,0.00605632,2477.1,2477.0,4.43166309]
[1747748282900,0.00605632,2477.1,2477.0,18.52466309]
[1747748283298,0.00605632,2477.1,2477.0,21.26466309]
[1747748283503,0.00605632,2477.1,2477.0,18.05686309]
[1747748283805,2.02458632,2477.1,2477.0,2.74]
[1747748284002,2.02458632,2477.1,2477.0,3.54711]
[1747748284211,2.02458632,2477.1,2477.0,1.688]
[1747748284510,2.02458632,2477.1,2476.8,14.094]
[1747748284807,0.80721,2476.7,2476.6,1.688]
[1747748285007,3.2078,2476.8,2476.4,40.97210614]
[1747748285214,2.51786,2476.6,2476.4,41.77940614]
[1747748285696,0.80728,2476.5,2476.4,42.74497091]
[1747748285896,0.80728,2476.5,2476.4,40.77687109]
[1747748285897,2.51788,2476.5,2476.4,40.77687109]
[1747748286101,4.53690001,2476.5,2476.4,40.77687109]
[1747748286301,2.01902001,2476.5,2476.4,41.58418109]
[1747748286496,0.00469949,2476.7,2476.6,0.80724]
[1747748286706,0.00469949,2476.7,2476.6,1.22399309]
[1747748286902,0.80728,2476.5,2476.4,40.77687109]
[1747748287105,0.80728,2476.5,2476.4,0.08487109]
[1747748287411,2.82630001,2476.5,2476.4,0.08487109]
[1747748288606,0.80731,2476.4,2476.3,12.89297256]
[1747748288806,2.38021,2476.4,2476.3,12.89297256]
[1747748289014,4.39931,2476.4,2476.3,12.89297256]
[1747748289912,4.39931,2476.4,2476.1,0.00605632]
[1747748289913,0.80737,2476.2,2476.1,0.00605632]
[1747748290303,7.826635,2476.2,2476.1,0.00605632]
[1747748290506,7.019265,2476.2,2475.5,17.58289982]
[1747748290704,0.80755,2475.7,2475.5,14.095]
[1747748290909,3.2078,2476.0,2475.5,14.095]
[1747748291110,2.41919,2475.9,2475.7,0.41675309]
[1747748291310,1.6117,2475.9,2475.8,0.8075]
[1747748291508,3.63125,2475.9,2475.7,0.41675309]
[1747748291812,0.8075,2475.8,2475.7,0.41675309]
[1747748292009,0.80754,2475.7,2475.6,1.57635632]
[1747748292207,0.80754,2475.7,2475.6,0.00605632]
[1747748292412,2.82721,2475.7,2475.6,0.00605632]
[1747748292718,0.00605632,2476.0,2475.7,0.80754]
[1747748292913,0.80747,2475.9,2475.8,0.41675309]
[1747748293115,0.80754,2475.7,2475.6,0.00605632]
[1747748293510,2.82721,2475.7,2475.6,0.00605632]
[1747748294009,4.40871,2475.7,2475.6,0.00605632]
[1747748294508,3.60117,2475.7,2475.6,0.00605632]
[1747748294712,4.40871,2475.7,2475.6,0.00605632]
[1747748294914,2.82721,2475.7,2475.6,0.00605632]
[1747748295617,0.80754,2475.7,2475.6,0.42280941]
[1747748295817,2.82721,2475.7,2475.6,0.00605632]
[1747748296212,0.8079,2474.6,2474.5,2.02179982]
[1747748296405,4.0157,2474.6,2474.5,1.93169982]
[1747748296609,4.0157,2474.6,2474.5,2.34845291]
[1747748296610,2.82847,2474.6,2474.5,2.34845291]
[1747748297114,7.82847,2474.6,2474.5,0.28009982]
[1747748297318,0.80782,2474.9,2474.7,0.80786]
[1747748297614,0.80779,2475.0,2474.8,1.22457309]
[1747748297810,0.80779,2475.0,2474.9,2.06835309]
[1747748298110,2.828155,2475.0,2474.9,2.06835309]
[1747748298418,2.828005,2475.0,2474.9,2.06835309]
[1747748298716,2.828005,2475.0,2474.9,1.6516]
[1747748299016,3.2078,2475.5,2474.9,2.06835309]
[1747748299314,0.80773,2475.2,2475.1,0.41675309]
[1747748299710,2.82781,2475.2,2474.9,2.45938]
[1747748299913,2.82781,2475.2,2475.1,0.41675309]
[1747748300106,0.80776,2475.0,2474.9,2.06835309]
[1747748300312,1.8047,2475.1,2474.7,13.579]
[1747748300504,0.80782,2474.9,2474.8,1.7979]
[1747748300910,2.828145,2474.9,2474.8,1.7979]
[1747748301319,0.8079,2474.6,2474.5,0.08486477]
[1747748301712,2.82847,2474.6,2474.5,0.08486477]
[1747748301914,2.5818,2474.9,2474.5,0.50161786]
[1747748302118,0.80776,2475.1,2474.9,0.80778]
[1747748302414,0.80773,2475.1,2475.0,1.6965]
[1747748302622,2.82793,2475.1,2475.0,1.6965]
[1747748304019,0.6510032,2475.2,2475.0,2.11325309]
[1747748304221,0.6510032,2475.2,2475.1,4.43228309]
[1747748304921,0.6510032,2475.2,2475.1,29.43228309]
[1747748305117,0.80773,2475.1,2475.0,1.6965]
[1747748305321,0.80778,2475.0,2474.9,0.80779]
[1747748305523,2.3656032,2475.2,2475.1,0.41675309]
[1747748305826,0.6510032,2475.2,2475.1,1.22448309]
[1747748306614,0.6510032,2475.2,2475.1,4.43228309]
[1747748306911,0.8076,2475.6,2475.1,7.42412309]
[1747748307118,3.21079016,2476.0,2475.6,2.01893]
[1747748307119,1.19216016,2476.0,2475.6,2.01893]
[1747748307317,0.00605632,2476.0,2475.9,1.22422309]
[1747748307823,0.00605632,2476.0,2475.9,4.43202309]
[1747748308023,0.00605632,2476.0,2475.9,9.43202309]
[1747748308317,2.55833603,2476.3,2476.1,0.41675309]
[1747748308524,2.55833603,2476.3,2475.9,8.2078]
[1747748308525,2.55833603,2476.3,2476.2,3.62455309]
[1747748308725,0.9874197,2476.3,2476.2,18.01392309]
[1747748308916,0.9874197,2476.3,2476.2,48.01392309]
[1747748309319,0.00469949,2476.7,2476.5,0.80728]
[1747748309518,0.00469949,2476.7,2476.6,0.80724]
[1747748309722,0.00605632,2476.8,2476.7,0.80721]
[1747748309921,1.18670853,2477.4,2477.3,0.80702]
[1747748310118,1.99368853,2477.4,2477.3,3.62455309]
[1747748310318,4.01197353,2477.4,2477.3,0.41675309]
[1747748310525,4.01197353,2477.4,2477.3,2.17545309]
[1747748310726,0.80715,2476.9,2476.8,3.2078]
[1747748310915,0.80718,2476.8,2476.7,2.17545309]
[1747748311119,2.825955,2476.8,2476.7,2.17545309]
[1747748311420,2.825955,2476.8,2476.7,1.97065988]
[1747748311618,2.825955,2476.8,2476.7,0.21195988]
[1747748312524,2.825955,2476.8,2476.6,0.00605632]
[1747748312525,0.80721,2476.7,2476.6,0.00605632]
[1747748312722,2.47831,2476.7,2476.6,0.00605632]
[1747748312926,13.915855,2476.7,2476.0,1.7587]
[1747748313128,0.80741,2476.1,2476.0,1.7587]
[1747748313427,3.2078,2476.4,2475.9,13.056]
[1747748313629,0.80744,2476.0,2475.9,14.8657]
[1747748313926,0.80744,2476.0,2475.9,13.056]
[1747748314134,2.826865,2476.0,2475.9,13.056]
[1747748314724,0.8075,2475.8,2475.7,0.00605632]
[1747748314933,4.0153,2475.8,2475.7,0.00605632]
[1747748315124,6.03489,2475.8,2475.7,0.00605632]
[1747748315744,2.01959,2475.8,2475.7,0.81359632]
[1747748315930,3.2078,2476.1,2475.7,0.42280941]
[1747748316128,0.80744,2476.0,2475.9,0.41675309]
[1747748316324,0.80747,2475.9,2475.8,1.8097]
[1747748316636,2.59757,2475.9,2475.8,1.8097]
[1747748316927,0.8075,2475.8,2475.7,0.00605632]
[1747748317130,2.4988,2475.8,2475.7,0.00605632]
[1747748317334,8.71089,2475.8,2475.0,3.41975988]
[1747748317633,0.80769,2475.3,2475.1,2.07655309]
[1747748317833,3.2078,2475.6,2475.2,0.41675309]
[1747748318024,0.80765,2475.4,2475.2,2.88424309]
[1747748318227,0.80765,2475.4,2475.3,1.6598]
[1747748318531,2.827605,2475.4,2475.3,1.6598]
[1747748318733,2.019955,2475.4,2475.3,2.88422309]
[1747748318927,2.827585,2475.4,2475.3,2.07655309]
[1747748319123,2.827585,2475.4,2475.1,0.2180162]
[1747748319124,0.8077,2475.2,2475.1,0.2180162]
[1747748319427,2.02510632,2475.5,2475.1,0.2180162]
[1747748319428,0.00605632,2475.5,2475.3,0.41675309]
[1747748319627,0.81365632,2475.5,2475.4,2.06645309]
[1747748320025,0.00605632,2475.5,2475.4,2.87408309]
[1747748320427,0.00605632,2475.5,2475.4,7.87408309]
[1747748320628,0.00605632,2475.5,2475.4,20.93108309]
[1747748320837,4.89234538,2476.4,2475.7,2.01881]
[1747748320838,2.87405538,2476.4,2475.7,2.01881]
[1747748321129,0.80734,2476.3,2476.2,0.41675309]
[1747748321334,0.80734,2476.3,2476.2,1.6497]
[1747748321529,0.80734,2476.3,2476.2,2.06645309]
[1747748322235,2.82652,2476.3,2476.2,2.06645309]
[1747748322833,0.80734,2476.3,2476.2,2.06645309]
[1747748323137,1.30313905,2476.4,2476.3,0.80734]
[1747748323343,0.00605632,2476.5,2476.4,0.80731]
[1747748323637,1.30313905,2477.1,2477.0,0.80711]
[1747748323842,1.30313905,2477.1,2477.0,17.48766309]
[1747748325134,1.30313905,2477.1,2477.0,22.48766309]
[1747748325435,2.34875818,2477.7,2477.6,0.80692]
[1747748325633,2.01641,2478.7,2477.6,0.80692]
[1747748325634,1.73,2478.5,2477.6,16.67855309]
[1747748325841,0.80662,2478.5,2478.4,3.2078]
[1747748326233,2.82401,2478.5,2478.4,3.2078]
[1747748326539,0.80666,2478.4,2478.3,13.86069]
[1747748326746,0.80666,2478.4,2478.3,16.2618]
[1747748327228,0.80666,2478.4,2478.3,13.054]
[1747748327229,2.82413001,2478.4,2478.3,13.054]
[1747748327425,2.82413001,2478.4,2478.2,0.00605632]
[1747748327426,0.80669,2478.3,2478.2,0.00605632]
[1747748327934,2.824245,2478.3,2478.2,0.00605632]
[1747748328139,4.656045,2478.3,2478.2,0.00605632]
[1747748329238,9.656045,2478.3,2478.2,0.00605632]
[1747748329835,4.656045,2478.3,2478.2,0.00605632]
[1747748330137,3.849355,2478.3,2478.2,0.81277632]
[1747748330344,0.80664,2478.5,2478.3,0.80669]
[1747748330540,0.00605632,2478.7,2478.5,1.22336309]
[1747748330734,0.80659,2478.6,2478.5,0.41675309]
[1747748330934,0.80659,2478.6,2478.4,13.34763]
[1747748331234,0.80659,2478.6,2478.4,12.47824609]
[1747748331640,0.80662,2478.5,2478.4,11.67161609]
[1747748331942,3.86235,2478.6,2478.4,12.539]
[1747748332135,3.86235,2478.6,2478.5,0.80662]
[1747748332441,2.74605632,2478.7,2478.6,0.80659]
[1747748333243,0.00605632,2478.7,2478.6,0.80659]
[1747748334835,0.00605632,2478.7,2478.6,5.80659]
[1747748335735,0.00605632,2478.7,2478.6,13.34359]
[1747748336636,0.81261632,2478.7,2478.6,12.537]
[1747748336839,0.80662,2478.5,2478.4,3.2078]
[1747748337042,1.7069,2478.6,2478.4,12.537]
[1747748337234,1.7069,2478.6,2478.5,0.80662]
[1747748337442,2.74605632,2478.7,2478.4,15.7448]
[1747748337638,0.80662,2478.5,2478.4,12.537]
[1747748337838,1.8503,2478.6,2478.4,12.535]
[1747748338040,0.80662,2478.5,2478.4,12.535]
[1747748338532,0.80669,2478.3,2478.2,0.00605632]
[1747748338730,1.8503,2478.4,2478.3,0.80669]
[1747748338937,2.65698,2478.4,2478.2,0.81274632]
[1747748339134,2.01751,2478.4,2478.2,0.00605632]
[1747748339330,1.8503,2478.6,2478.2,3.21385632]
[1747748339539,3.2078,2478.3,2476.5,3.2078]
[1747748339734,4.01481,2477.3,2476.5,12.535]
[1747748339937,4.01481,2477.3,2476.8,0.80716]
[1747748340136,4.01481,2477.3,2476.7,1.7255]
[1747748340137,10.226165,2477.3,2476.7,1.7255]
[1747748340444,0.80731,2476.4,2476.3,12.61986477]
[1747748340739,4.01511,2476.4,2476.3,0.08486477]
[1747748341148,6.03421,2476.4,2476.3,0.08486477]
[1747748341343,1.7146,2476.8,2476.4,0.8073]
[1747748341650,6.941295,2476.8,2476.4,12.535]
[1747748341943,0.80722,2476.7,2476.4,12.535]
[1747748342132,5.226695,2476.8,2476.4,12.535]
[1747748342335,1.7146,2477.1,2476.5,1.7508]
[1747748342641,3.21385632,2477.2,2477.1,0.80708]
[1747748342838,3.21385632,2477.2,2477.1,13.34208]
[1747748343145,3.21385632,2477.2,2477.1,16.54988]
[1747748343146,0.00605632,2477.2,2477.1,16.54988]
[1747748343444,0.00605632,2477.2,2477.1,12.535]
[1747748343646,0.00605632,2477.2,2477.1,14.2858]
[1747748343840,0.00605632,2477.2,2477.1,15.09288]
[1747748344041,0.00605632,2477.2,2477.1,15.09488]
[1747748344941,0.00605632,2477.2,2477.1,18.30268]
[1747748345144,0.00605632,2477.2,2477.1,15.09488]
[1747748345447,0.80677,2478.1,2477.3,2.01754]
[1747748345647,3.2078,2478.3,2477.4,5.0226]
[1747748345839,3.2078,2478.3,2478.2,0.80672]
[1747748346040,3.2078,2478.8,2478.6,0.80656]
[1747748346236,3.2078,2478.8,2478.7,13.34356]
[1747748346441,3.2078,2478.8,2478.7,12.537]
[1747748346643,4.01433,2478.8,2478.7,12.537]
[1747748346949,6.031475,2478.8,2478.7,12.537]
[1747748347136,8.771475,2478.8,2478.7,12.537]
[1747748347539,5.9478,2478.8,2478.7,13.34356]
[1747748348050,6.75433,2478.8,2478.7,12.537]
[1747748348244,0.80659,2478.6,2478.5,6.32e-06]
[1747748348445,0.80685,2477.8,2477.7,9.88e-06]
[1747748348644,0.80698,2477.4,2477.3,1.92e-06]
[1747748348955,9.01478,2477.4,2477.3,1.92e-06]
[1747748349251,13.773065,2477.4,2477.3,1.92e-06]
[1747748350150,2.01766,2477.2,2476.5,1.8194]
[1747748350341,4.01504,2476.6,2476.5,1.8194]
[1747748350537,0.80731,2476.4,2476.3,0.08486477]
[1747748350848,5.22682001,2476.6,2476.3,0.08486477]
[1747748351141,0.80731,2476.4,2476.3,0.08486477]
[1747748351552,2.82641,2476.4,2476.3,0.08486477]
[1747748352343,0.8076,2475.6,2474.8,2.01955]
[1747748352546,3.2078,2475.7,2475.3,1.8194]
[1747748353353,0.00605632,2475.7,2475.3,1.82545632]
[1747748353556,0.00605632,2475.7,2475.6,0.80757]
[1747748353957,0.00605632,2475.7,2475.6,5.80757]
[1747748354356,3.21385632,2475.7,2475.4,12.539]
[1747748354651,0.80757,2475.6,2475.5,1.8004]
[1747748354864,3.21385632,2475.7,2475.3,12.54505632]
[1747748355168,3.21385632,2475.7,2475.6,0.80757]
[1747748355169,0.00605632,2475.7,2475.6,0.80757]
[1747748355355,3.21385632,2475.7,2475.6,0.80757]
[1747748355554,0.00605632,2475.7,2475.6,0.80757]
[1747748356652,3.2078,2477.1,2475.6,8.2078]
[1747748356854,1.7982,2476.9,2476.8,0.80718]
[1747748357057,1.7982,2476.9,2476.3,0.08486477]
[1747748357254,0.80731,2476.4,2476.3,0.08486477]
[1747748357963,3.2078,2476.5,2476.3,0.08486477]
[1747748358158,4.01508,2476.5,2476.4,1.756]
[1747748358462,7.02502001,2476.5,2476.3,0.08486477]
[1747748358664,5.006,2476.5,2476.3,0.08486477]
[1747748358860,5.81328,2476.5,2476.4,1.756]
[1747748359361,0.80731,2476.4,2476.3,0.08486477]
[1747748359555,0.00605632,2476.6,2476.3,0.08486477]
[1747748359750,1.878,2476.9,2476.5,0.80728]
[1747748359956,1.878,2476.9,2476.7,0.80721]
[1747748360157,5.22513,2477.6,2476.8,3.2078]
[1747748360454,1.31545773,2477.7,2476.9,2.01787]
[1747748360660,1.31545773,2477.7,2477.6,0.80692]
[1747748360963,1.31545773,2477.7,2477.6,13.16892]
[1747748361164,1.31545773,2477.7,2477.6,0.80692]
[1747748361366,1.31545773,2477.7,2477.6,13.16892]
[1747748361565,1.31545773,2477.7,2477.6,12.362]
[1747748361766,1.31545773,2477.7,2477.6,13.16892]
[1747748362370,1.31545773,2477.7,2477.6,16.37672]
[1747748363561,0.80683,2477.9,2477.8,0.80683]
[1747748363764,0.80676,2478.1,2477.7,1.8367]
[1747748363963,3.2078,2478.8,2477.8,3.2078]
[1747748364159,3.2078,2478.8,2478.2,5.22461]
[1747748364468,1.9177,2479.1,2478.9,0.80648]
[1747748364766,2.72416,2479.1,2478.9,13.16748]
[1747748364962,4.7411,2479.1,2478.9,13.16748]
[1747748365157,4.7411,2479.1,2478.9,12.361]
[1747748365362,1.9177,2479.1,2478.9,13.16746]
[1747748365563,0.00605632,2479.2,2478.9,14.2118]
[1747748365770,2.02295632,2479.2,2479.1,0.80643]
[1747748365967,1.31719197,2479.7,2479.6,0.80627]
[1747748366164,1.31719197,2479.7,2479.6,13.16727]
[1747748367368,1.31719197,2479.7,2479.6,18.16727]
[1747748367567,0.00379706,2479.9,2479.8,0.8062]
[1747748367763,0.00379706,2479.9,2479.8,4.014]
[1747748368261,0.00379706,2479.9,2479.8,10.8648]
[1747748368467,0.00379706,2479.9,2479.8,5.8648]
[1747748368666,0.00379706,2479.9,2479.8,10.8648]
[1747748369266,0.00379706,2479.9,2479.8,5.8648]
[1747748369476,0.00379706,2479.9,2479.8,18.2218]
[1747748369869,0.00379706,2479.9,2479.8,23.2218]
[1747748370781,0.80617,2479.9,2479.8,5.0586]
[1747748371072,0.80617,2479.9,2478.2,0.40232528]
[1747748371073,2.01551,2479.8,2479.4,12.353]
[1747748371273,0.8063,2479.5,2479.4,12.353]
[1747748371467,0.80649,2479.0,2478.7,40.665]
[1747748371667,0.80649,2478.9,2478.7,12.353]
[1747748371864,0.80649,2478.9,2478.4,3.2078]
[1747748372070,2.823555,2478.9,2478.5,12.353]
[1747748372272,4.757065,2478.9,2478.5,12.353]
[1747748372577,10.563555,2478.9,2478.7,12.353]
[1747748373079,0.80662,2478.5,2478.4,15.5608]
[1747748373280,5.0698,2478.8,2478.5,0.8066]
[1747748373483,0.80659,2478.6,2478.4,16.36743]
[1747748374278,4.75735,2478.6,2478.4,15.5618]
[1747748374474,1.8432,2478.5,2478.4,16.36844]
[1747748374679,4.75735,2478.6,2478.5,0.80662]
[1747748375075,2.74,2478.6,2478.5,0.80662]
[1747748375276,2.74,2478.6,2478.5,2.69742]
[1747748375480,2.74,2478.6,2478.5,1.8908]
[1747748375780,2.74,2478.6,2478.5,2.69742]
[1747748376266,2.74,2478.6,2478.5,15.05142]
[1747748377278,2.74,2478.6,2478.5,14.2448]
[1747748377279,3.54659,2478.6,2478.5,14.2448]
[1747748377583,2.74,2478.6,2478.5,15.05142]
[1747748378173,2.74,2478.6,2478.5,14.27997078]
[1747748378379,2.74,2478.6,2478.5,19.27997078]
[1747748379180,0.00605632,2478.7,2478.6,0.80659]
[1747748379580,0.00605632,2478.7,2478.6,5.80659]
[1747748380177,0.80636,2479.4,2478.6,5.0]
[1747748380481,1.7628,2479.5,2479.4,0.80633]
[1747748380681,0.80625,2479.7,2479.4,11.857]
[1747748380881,3.2078,2479.8,2479.7,0.80623]
[1747748381376,2.01536,2480.0,2479.9,0.80617]
[1747748381377,2.74,2480.0,2479.9,0.80617]
[1747748381586,2.74,2480.0,2479.9,15.87097]
[1747748381980,2.74,2480.0,2479.9,12.66317]
[1747748382176,0.9889895,2480.2,2479.9,11.857]
[1747748382482,0.9889895,2480.2,2480.1,4.0139]
[1747748382685,1.7950595,2480.2,2480.1,4.0139]
[1747748382984,0.80611,2480.1,2480.0,11.855]
[1747748383182,3.54611,2480.1,2480.0,11.855]
[1747748383380,12.3818,2480.1,2480.0,11.855]
[1747748383578,15.5896,2480.1,2480.0,11.855]
[1747748384183,0.8062,2479.8,2479.7,11.86105632]
[1747748384384,0.80633,2479.4,2479.3,40.662]
[1747748384576,0.80633,2479.5,2479.3,40.662]
[1747748384777,2.62593,2479.4,2479.3,40.662]
[1747748384979,0.8064,2479.2,2479.1,11.855]
[1747748385187,3.5464,2479.2,2479.1,11.855]
[1747748385387,5.56322,2479.2,2479.1,11.855]
[1747748385587,3.5464,2479.2,2479.1,11.855]
[1747748385787,0.80646,2479.0,2478.9,0.00605632]
[1747748385975,1.8196,2479.1,2479.0,12.66046]
[1747748386174,4.5596,2479.1,2479.0,11.854]
[1747748386374,6.5765,2479.1,2479.0,12.66046]
[1747748386579,2.74,2479.1,2479.0,15.86826]
[1747748386790,2.74,2479.1,2479.0,17.72076]
[1747748387081,1.8929,2479.3,2479.0,14.51296]
[1747748387282,0.80646,2479.0,2478.9,11.86005632]
[1747748387480,2.01673,2478.4,2478.0,12.13421468]
[1747748387682,0.00605632,2479.4,2478.0,12.13421468]
[1747748387683,3.2078,2478.5,2478.0,12.13421468]
[1747748387879,3.2078,2479.2,2478.8,0.80652]
[1747748388085,0.00605632,2479.4,2479.1,0.80641]
[1747748388384,0.00605632,2479.4,2479.3,0.80637]
[1747748388689,2.82904632,2479.4,2479.2,0.80637]
[1747748388892,0.00605632,2479.4,2479.3,0.80637]
[1747748389380,0.00605632,2479.4,2479.3,2.60107]
[1747748389580,0.81238632,2479.4,2479.3,1.7947]
[1747748389780,0.00605632,2479.4,2479.3,1.7947]
[1747748389977,0.00605632,2479.4,2479.3,2.60107]
[1747748390187,1.57350686,2479.9,2479.3,10.0025]
[1747748390388,0.80616,2480.0,2479.8,0.8062]
[1747748390591,3.2078,2480.1,2479.8,11.855]
[1747748390889,0.80615,2480.0,2479.8,12.66119]
[1747748391089,2.73965,2480.0,2479.8,12.66119]
[1747748391787,2.73966,2480.0,2479.8,12.66119]
[1747748392197,1.9335,2480.0,2479.9,0.80617]
[1747748392495,0.00605632,2480.1,2480.0,0.80614]
[1747748392699,0.00605632,2480.1,2480.0,2.63604]
[1747748392894,4.78130686,2481.1,2480.6,0.80594]
[1747748393090,1.9629,2480.9,2480.6,12.65994]
[1747748393399,1.7577795,2480.9,2480.4,3.2078]
[1747748393592,2.5636595,2480.9,2480.6,0.80593]
[1747748393892,2.5636595,2480.9,2480.5,11.854]
[1747748393893,2.5636295,2480.9,2480.7,1.8299]